Cogmind - Beta 13 @@@ ROGUE MODE // 2024.05.10 @ 00:03:30 Player: luckinvolved Result: Destroyed by Y-54 Guardian with Gatling Laser Performance ------------- Evolutions (4) 2000 Regions Visited (14) 2800 Robots Destroyed (194) 970 Value Destroyed (7529) 7529 Prototype IDs (5) 100 Alien Tech Used (0) 0 Bonus (4335) 4335 TOTAL SCORE: 17734 Bonus ------- High Alert Combat Kills 2240 Follower Combat Kills 131 Entered Garrisons 800 Used RIF Installer 2000 Friendly Fire -836 Cogmind --------- Core Integrity 0/850 Matter 77/300 Energy 99/100 System Corruption 0% Temperature Cool (12) Movement Core (50) Location -6/Factory Parts ------- > --- POWER (2) -------- (None) > --- PROPULSION (4) --- (None) > --- UTILITY (7) ------ Advanced Signal Interpreter Relay Coupler [Heavy] (17) > --- WEAPON (2) ------- (None) > --- INVENTORY (5) ---- Advanced Heat Sink Energy Well (350) Matter Compressor (0) Improved Dynamic Insulation System Improved Datajack Peak State ------------ > --- POWER ------------ Enhanced Nuclear Core Improved Fusion Compressor > --- PROPULSION ------- Armored Treads Heavy Treads Advanced Medium Treads > --- UTILITY ---------- Advanced Cooling System High-capacity Storage Unit Enhanced Optical Array Improved Focal Shield Advanced Hardlight Generator Improved Force Field Relay Coupler [NC] > --- WEAPON ----------- KE Penetrator Hypervelocity Mass Driver > --- INVENTORY -------- Enhanced Nuclear Core Enhanced Nuclear Core Medium Treads Medium Treads Medium Treads Advanced Heat Sink Matter Compressor Improved Transmission Jammer Advanced Thermal Shield Relay Coupler [Swarmer] Relay Coupler [Heavy] Improved Dynamic Insulation System Variable Charge Gun Coil Gun Advanced Assault Cannon Gauss Cannon Heavy Rocket Launcher Remote Datajack Power Maul [Rating: 89] Favorites ----------- Power Cooled Ion Engine Engine Cooled Ion Engine Power Core Improved Fusion Compressor Propulsion Light Treads Treads Light Treads Leg Carbon-fiber Leg Wheel Compact Wheel Hover Unit Improved Gravmag System Flight Unit VTOL Module Utility High-capacity Storage Unit Device Improved Heat Sink Storage High-capacity Storage Unit Processor Target Analyzer Hackware Relay Coupler [NC] Protection Light Armor Plating Weapon KE Penetrator Energy Gun Particle Gun Ballistic Gun KE Penetrator Ballistic Cannon Advanced Assault Cannon Launcher Heavy Rocket Launcher Special Weapon Remote Datajack Impact Weapon Power Maul Slashing Weapon Katana Build | -11 -10 -10 -10 -9 -8 -8 -8 -7 -7 -7 -7 -6 -6 -6 ------- Run | Yrd Mat Min Exi Min Mat Gar Mat Fac Gar Fac Gar Fac Gar Fac Slots Evolved 8 | . . . . . 4 . . 2 . . . 2 . . Power 1 | . . . . . . . . . . . . 1 . . Propulsion 2 | . . . . . 2 . . . . . . . . . Utility 5 | . . . . . 2 . . 2 . . . 1 . . Weapon . | . . . . . . . . . . . . . . . Parts Attached 196 | 6 1 2 . 4 31 34 6 15 13 13 12 23 31 5 Power 13 | 1 . . . 2 2 1 . . 1 1 . 2 3 . Engine 8 | 1 . . . 2 2 1 . . 1 1 . . . . Core 5 | . . . . . . . . . . . . 2 3 . Reactor . | . . . . . . . . . . . . . . . Propulsion 49 | 2 . . . 2 12 11 . 1 4 7 . 3 6 1 Treads 41 | 2 . . . . 11 10 . 1 3 7 . 3 4 . Leg 2 | . . . . . . . . . . . . . 2 . Wheel 3 | . . . . 2 . 1 . . . . . . . . Hover 1 | . . . . . . . . . . . . . . 1 Flight 2 | . . . . . 1 . . . 1 . . . . . Utility 58 | 1 1 1 . . 7 8 2 6 6 . 3 8 12 3 Device 32 | . . 1 . . 3 5 1 5 3 . . 4 8 2 Storage 5 | 1 1 . . . 1 . 1 . . . . 1 . . Processor 4 | . . . . . . 1 . . . . . 2 . 1 Hackware 5 | . . . . . 1 . . . . . 2 . 2 . Protection 12 | . . . . . 2 2 . 1 3 . 1 1 2 . Artifact . | . . . . . . . . . . . . . . . Weapon 76 | 2 . 1 . . 10 14 4 8 2 5 9 10 10 1 Energy Gun 6 | 1 . 1 . . 1 2 . . . . . . 1 . Energy Cannon . | . . . . . . . . . . . . . . . Ballistic Gun 33 | 1 . . . . 8 5 3 4 1 4 2 1 4 . Ballistic Cannon 9 | . . . . . . 3 . . . . 2 3 1 . Launcher 11 | . . . . . . 2 1 . . 1 3 3 1 . Special Weapon 3 | . . . . . . . . . . . . 1 2 . Impact Weapon 11 | . . . . . . . . 4 1 . 2 2 1 1 Slashing Weapon 3 | . . . . . 1 2 . . . . . . . . Piercing Weapon . | . . . . . . . . . . . . . . . Special Melee Weapon . | . . . . . . . . . . . . . . . Unidentified Prototypes 5 | . . . . . 3 . . . . . . 2 . . Parts Lost 75 | . . . . 3 11 19 . 1 . 3 1 4 30 3 Power 9 | . . . . 1 1 1 . . . 1 . . 5 . Propulsion 24 | . . . . 2 4 10 . . . 1 . . 6 1 Utility 26 | . . . . . 3 6 . 1 . . 1 3 11 1 Weapon 16 | . . . . . 3 2 . . . 1 . 1 8 1 Highest Loss Streak 12 | . . . . 3 3 6 . 1 . 2 1 2 12 3 To Critical Strikes . | . . . . . . . . . . . . . . . Average Slot Usage (%) 87 | . 85 96 100 98 94 93 90 90 87 90 82 85 71 20 Engine 7 | . 14 14 14 12 8 8 9 7 7 6 7 3 . . Core 1 | . . . . . . . . . . . . 8 11 . Treads 24 | . 28 28 28 21 30 30 27 23 23 28 23 19 9 . Wheel 1 | . . . . 6 4 2 . . . . . . . . Device 16 | . . 10 14 14 15 16 17 24 22 23 20 15 14 2 Storage 8 | . 14 14 14 14 9 9 9 7 7 7 7 6 5 . Processor 2 | . . . . . . 4 . . . . . 4 5 4 Hackware 1 | . . . . . 1 . . . . . . 6 6 6 Protection 5 | . . . . . 6 3 9 12 10 7 7 5 4 . Energy Gun 1 | . 14 14 14 14 1 1 . . . . . . . . Ballistic Gun 10 | . 14 14 14 14 16 7 15 12 13 11 9 6 2 . Ballistic Cannon 2 | . . . . . . 8 2 . . . . 2 4 . Impact Weapon 1 | . . . . . . . . 1 1 3 3 1 1 4 Naked Turns . | . . . . . . . . . . . . . . . Heaviest Build 113 | 13 28 30 30 30 61 66 65 73 95 96 103 113 99 15 Greatest Support 130 | 40 40 40 40 40 80 110 110 110 110 118 118 130 130 10 Greatest Overweight (x) 24 | . . . . . 1 4 . . 2 3 . . 24 4 Average Overweight (x) . | . . . . . . . . . . . . . 1 . Largest Inventory Capacity 20 | 8 15 15 15 15 20 20 20 20 20 20 20 20 20 5 Average Capacity 18 | 7 13 15 15 15 17 20 20 20 20 20 20 20 19 5 Most Carried 20 | 4 14 15 15 15 20 20 20 20 20 20 20 20 20 5 Average Carried 17 | 2 10 14 15 14 16 18 19 19 19 18 19 19 16 4 Final Capacity 20 | 8 15 15 15 15 20 20 20 20 20 20 20 20 5 5 Final Carried 20 | 4 14 15 15 12 20 20 20 20 20 19 20 20 5 5 Class Distribution -------------------- 48% | Mutant 47% | Scavenger-Mutant 3% | Commander-Mutant Dominant Class ---------------- Mutant | -10/Materials Mutant | -10/Mines Mutant | -10/Exiles Mutant | -9/Mines Scavenger-Mutant | -8/Materials Scavenger-Mutant | -8/Garrison Scavenger-Mutant | -8/Materials Scavenger-Mutant | -7/Factory Mutant | -7/Garrison Scavenger-Mutant | -7/Factory Mutant | -7/Garrison Mutant | -6/Factory Mutant | -6/Garrison Mutant | -6/Factory Resources | -11 -10 -10 -10 -9 -8 -8 -8 -7 -7 -7 -7 -6 -6 -6 ----------- Run | Yrd Mat Min Exi Min Mat Gar Mat Fac Gar Fac Gar Fac Gar Fac Matter Collected 5950 | 260 36 3 . 40 952 1106 251 95 53 649 212 1395 874 24 Remotely 570 | . . . . . 177 393 . . . . . . . . Salvage Created 6579 | 16 229 85 . 136 1073 946 514 300 53 698 394 1426 709 . Parts 364 | 4 23 5 . 6 69 49 30 21 . 35 20 73 29 . Haulers Intercepted 4 | . 2 . . . 1 . . . . . . 1 . . Recyclers Shooed 4 | . . . . . 3 . . . . . . 1 . . Parts Field Recycled . | . . . . . . . . . . . . . . . Retrieved Matter . | . . . . . . . . . . . . . . . Parts Self-Destructed . | . . . . . . . . . . . . . . . Prevented . | . . . . . . . . . . . . . . . Kills | -11 -10 -10 -10 -9 -8 -8 -8 -7 -7 -7 -7 -6 -6 -6 ------- Run | Yrd Mat Min Exi Min Mat Gar Mat Fac Gar Fac Gar Fac Gar Fac Combat Hostiles Destroyed 173 | . 5 2 . 3 26 32 11 6 . 17 22 31 18 . Melee 1 | . . . . . . . . . . . . . 1 . Guns 97 | . 5 2 . 3 26 14 8 6 . 11 3 15 4 . Cannons 35 | . . . . . . 10 . . . . . 13 12 . AOE 39 | . . . . . . 8 3 . . 6 19 3 . . Classes Destroyed 15 | 1 4 . . . 5 3 . . . . . 2 . . Worker 6 | 1 . . . . 1 . 1 . . 2 . 1 . . Builder 3 | . 1 . . . . . 1 . . . . 1 . . Hauler 4 | . 2 . . . 1 . . . . . . 1 . . Recycler 5 | . . . . . 2 . . . . 2 . 1 . . Swarmer 65 | . 3 . . . 12 10 3 . . 10 15 8 4 . Saboteur 3 | . . . . . . . . . . . . 1 2 . Grunt 56 | . 2 2 . 3 6 11 4 2 . 3 7 9 7 . Brawler 3 | . . . . . 1 . . . . . . 1 1 . Duelist 6 | . . . . . 1 . . . . . . 5 . . Protector 1 | . . . . . . . . . . . . 1 . . Sentry 20 | . . . . . 5 4 3 1 . 1 . 3 3 . Specialist 1 | . . . . . . 1 . . . . . . . . Hunter 11 | . . . . . 1 4 1 1 . 1 . 2 1 . Programmer 8 | . . . . . . 3 . 2 . 2 . 1 . . Behemoth 1 | . . . . . . 1 . . . . . . . . Savage 1 | . . . . . . . . . 1 . . . . . Best Kill Streak 12 | 1 3 2 . 3 5 5 9 2 . 7 12 9 4 . Combat Bots Only 12 | . 3 2 . 3 5 5 8 2 . 7 12 8 4 . Max Kills in Single Turn 5 | 1 1 1 . 1 1 4 2 1 1 5 4 2 2 . Gunslinging 1 | . . . . . . 1 . . . . . 1 . . Exploded 5 | . . . . . . 4 2 . . 5 4 1 . . Melee 1 | . . . . . . . . . . . . . 1 . Uniques/NPCs Destroyed . | . . . . . . . . . . . . . . . Combat | -11 -10 -10 -10 -9 -8 -8 -8 -7 -7 -7 -7 -6 -6 -6 -------- Run | Yrd Mat Min Exi Min Mat Gar Mat Fac Gar Fac Gar Fac Gar Fac Hostile Shots Fired 1469 | . 22 5 . 18 172 195 65 43 . 124 65 340 368 52 Missed 363 | . 6 2 . 1 32 55 17 10 . 32 19 84 87 18 Damage Taken 14075 | . 189 42 . 460 1944 2243 540 333 26 1287 548 2164 3795 504 Core 1450 | . 22 30 . 62 185 178 51 10 . 22 40 155 422 273 Absorbed by Shields 2579 | . . . . . . 59 . 67 . 316 122 1393 622 . Reduced by Siege Mode 162 | . . . . . . . 25 11 . . 19 66 41 . Redirected to Shielding 105 | . . . . . . 105 . . . . . . . . Ignored by Resistances 555 | . . . . . . . 112 . . 55 49 39 300 . Regen/Repaired (Parts) 162 | . . . . . . . . . . 162 . . . . Core Remaining (%) 66 | 100 . . . 54 . . 24 . . . 89 . . . Volleys Fired 451 | 1 25 3 . 13 93 83 20 14 1 40 15 83 60 . Largest 2 | 2 2 2 . 2 2 2 2 2 1 2 2 2 2 . Hottest 105 | 70 70 70 . 85 85 96 66 66 33 66 63 99 105 . Shots Fired 767 | 2 50 6 . 26 184 162 37 28 1 64 23 121 63 . Gun 602 | 2 50 6 . 26 184 108 35 28 1 63 15 71 13 . Cannon 142 | . . . . . . 49 . . . . . 44 49 . Launcher 23 | . . . . . . 5 2 . . 1 8 6 1 . Special . | . . . . . . . . . . . . . . . Kinetic 684 | 1 25 3 . 13 175 149 35 28 1 63 15 115 61 . Thermal 60 | 1 25 3 . 13 9 8 . . . . . . 1 . Explosive 23 | . . . . . . 5 2 . . 1 8 6 1 . Electromagnetic . | . . . . . . . . . . . . . . . Robot Hit Streak 26 | 1 14 5 . 7 12 26 23 25 6 11 8 23 18 . Robot Miss Streak 5 | 1 2 1 . 2 3 5 1 1 . 3 2 2 3 . Penetration Max 1 | . . . . . . . 1 . 1 . . 1 1 . Secondary Targets 16 | . . 1 . 1 3 2 3 . . 2 . 4 . . Max Gunslinging Chain 1 | . . 1 . 1 1 1 1 . . 1 . 1 . . Shots Hit Robots 570 | 1 36 5 . 20 127 103 35 19 2 48 14 102 56 2 Core Hits 312 | 1 17 5 . 8 57 50 15 10 2 24 30 66 27 . Critical Kills 22 | . . . . . . . . . . . . 14 8 . Critical Parts Destroyed 31 | . . . . . . . 1 . . 2 . 18 9 1 Critical Strikes 64 | . 2 . . . . 2 1 . . 2 . 33 23 1 Burn 2 | . 2 . . . . . . . . . . . . . Destroy 52 | . . . . . . . 1 . . 1 . 33 17 . Blast 8 | . . . . . . 2 . . . . . . 6 . Smash 2 | . . . . . . . . . . 1 . . . 1 Melee Attacks 37 | . . . . . 1 9 . 6 1 2 7 2 5 4 Impact 27 | . . . . . . . . 6 1 2 7 2 5 4 Slashing 10 | . . . . . 1 9 . . . . . . . . Piercing . | . . . . . . . . . . . . . . . Sneak Attacks . | . . . . . . . . . . . . . . . Combat Hostiles . | . . . . . . . . . . . . . . . Follow-up Attacks . | . . . . . . . . . . . . . . . Damage Inflicted 16203 | 13 381 55 . 222 1985 3296 1138 460 197 2030 1854 3198 1288 86 Guns 8285 | 13 381 55 . 222 1985 985 822 460 45 1227 244 1592 254 . Cannons 2476 | . . . . . . 872 . . . . . 719 885 . Explosions 4957 | . . . . . . 1408 316 . . 736 1610 887 . . Melee 440 | . . . . . . 31 . . 107 67 . . 149 86 Ramming 45 | . . . . . . . . . 45 . . . . . Kinetic 10158 | . 133 18 . 81 1924 1781 822 460 45 1227 244 2311 1112 . Thermal 841 | 13 248 37 . 141 61 76 . . . 238 . . 27 . Explosive 4719 | . . . . . . 1408 316 . . 498 1610 887 . . Electromagnetic . | . . . . . . . . . . . . . . . Impact 409 | . . . . . . . . . 107 67 . . 149 86 Slashing 31 | . . . . . . 31 . . . . . . . . Piercing . | . . . . . . . . . . . . . . . Highest Corruption 13 | . . . . . 4 13 13 . . 4 4 . . . Average Corruption 6 | . . . . . 4 9 13 . . 2 4 . . . Corruption Purged . | . . . . . . . . . . . . . . . Corruption Blocked . | . . . . . . . . . . . . . . . Effects 149 | . . . . . 20 86 18 . . 13 12 . . . Message Errors 30 | . . . . . 7 14 5 . . 2 2 . . . Matter Fused 36 | . . . . . 4 23 3 . . 1 5 . . . Heat Flow Errors 14 | . . . . . 1 10 . . . 3 . . . . Energy Discharges 16 | . . . . . . 13 1 . . 1 1 . . . Parts Rejected 4 | . . . . . 1 1 1 . . 1 . . . . Parts Fused 5 | . . . . . . 3 . . . 2 . . . . Data Loss (minor) 16 | . . . . . 3 7 2 . . 2 2 . . . Data Loss (major) 10 | . . . . . 1 5 2 . . 1 1 . . . Misfires 9 | . . . . . 2 5 1 . . . 1 . . . Alerts 4 | . . . . . . 4 . . . . . . . . Misdirections 1 | . . . . . . . 1 . . . . . . . Weapon Failures 4 | . . . . . 1 1 2 . . . . . . . Overload Shots . | . . . . . . . . . . . . . . . Overflow Damage 533 | . . . . . . 136 74 . . 230 8 . 31 54 Projectiles 15 | . . . . . . 15 . . . . . . . . Explosions 375 | . . . . . . 121 74 . . 163 8 . 9 . Melee 143 | . . . . . . . . . . 67 . . 22 54 Knockbacks 22 | . . . . . . 7 . . . 1 . 4 10 . Impact 2 | . . . . . . . . . . 1 . . 1 . Kinetic 19 | . . . . . . 6 . . . . . 4 9 . Secondary 1 | . . . . . . 1 . . . . . . . . Self-Inflicted Damage 827 | . . . . . . 194 12 . 26 472 . 73 50 . Shots 14 | . . . . . . 3 1 . . 6 . 3 1 . Rammed 1 | . . . . . . . . . 1 . . . . . Targets Rammed 3 | . . . . . . . . . 3 . . . . . Kicked . | . . . . . . . . . . . . . . . Crushed 2 | . . . . . . . . . 2 . . . . . Highest Temperature 466 | 30 180 74 . 50 231 256 . 9 . 303 163 201 466 . Average Temperature 83 | 18 52 38 . 17 41 87 . 3 . 108 58 42 202 . Received Heat Transfer 3844 | . 108 24 . 84 594 435 135 98 . 213 121 579 1441 12 Effects 11 | . . . . . . . . . . 6 . . 5 . Shutdowns 2 | . . . . . . . . . . . . . 2 . Energy Bleed 3 | . . . . . . . . . . 2 . . 1 . Interference 6 | . . . . . . . . . . 4 . . 2 . Siege Activations 23 | . . . . . . . 2 3 . 1 2 12 3 . Total Turns 404 | . . . . . . . 48 36 . 12 35 208 65 . Longest Duration 44 | . . . . . . . 26 16 . 12 20 41 44 . Robots Corrupted . | . . . . . . . . . . . . . . . Combat Hostiles . | . . . . . . . . . . . . . . . Parts Fried 1 | . . . . . . . . . . . . . 1 . Impact Corruptions 4 | . . . . . . . . . . 2 . . 1 1 Robots Melted . | . . . . . . . . . . . . . . . Combat Hostiles . | . . . . . . . . . . . . . . . Parts Melted 2 | . 1 . . . . . . . . . . . 1 . Heat Transferred 1812 | 37 888 111 . 333 148 108 . . . 150 . . 37 . Parts Sabotaged 9 | . . . . . . . . . . . . . 9 . Parts Stolen . | . . . . . . . . . . . . . . . Parts Stripped . | . . . . . . . . . . . . . . . Power Chain Reactions . | . . . . . . . . . . . . . . . Alert | -11 -10 -10 -10 -9 -8 -8 -8 -7 -7 -7 -7 -6 -6 -6 ------- Run | Yrd Mat Min Exi Min Mat Gar Mat Fac Gar Fac Gar Fac Gar Fac Peak Influence 1682 | 5 165 63 . 70 498 1682 1164 538 636 874 1275 1051 1040 562 Initial 819 | . 3 13 . . 15 265 819 438 287 333 611 669 735 532 Average 657 | . 61 61 . 38 319 942 1029 411 456 484 1035 787 935 537 Maximum Alert Level 5 | . . . . . 2 5 4 2 2 3 4 3 3 2 Low Security (%) 11 | 100 100 100 . 100 23 . . . . 9 . . . . Level 1 16 | . . . . . 42 7 . 22 30 53 . . . . Level 2 28 | . . . . . 34 23 . 77 69 9 16 32 . 100 Level 3 31 | . . . . . . 32 56 . . 27 39 67 100 . Level 4 11 | . . . . . . 32 43 . . . 44 . . . Level 5 . | . . . . . . 3 . . . . . . . . High Security . | . . . . . . . . . . . . . . . Max Security . | . . . . . . . . . . . . . . . Squads Dispatched 27 | . 1 . . . 4 . 3 5 . 8 . 6 . . Investigation 5 | . . . . . . . 1 1 . 3 . . . . Extermination 5 | . . . . . . . . 2 . 2 . 1 . . Reinforcement 8 | . 1 . . . 1 . 2 2 . . . 2 . . Assault 3 | . . . . . . . . . . . . 3 . . Garrison 6 | . . . . . 3 . . . . 3 . . . . Intercept . | . . . . . . . . . . . . . . . Searches Triggered . | . . . . . . . . . . . . . . . Construction Impeded 2 | . . . . . . . . . . . . 2 . . Haulers Reinforced . | . . . . . . . . . . . . . . . Active Scanning Responses . | . . . . . . . . . . . . . . . Cargo Convoy Interrupts . | . . . . . . . . . . . . . . . Stealth | -11 -10 -10 -10 -9 -8 -8 -8 -7 -7 -7 -7 -6 -6 -6 --------- Run | Yrd Mat Min Exi Min Mat Gar Mat Fac Gar Fac Gar Fac Gar Fac Distress Signals 8 | . 1 . . . 6 . 1 . . . . . . . Communications Jammed . | . . . . . . . . . . . . . . . Distress Signals . | . . . . . . . . . . . . . . . Times Spotted 249 | . 11 2 . 5 47 38 19 10 . 22 21 37 33 4 Peak Tracking Total 14 | . 5 1 . 3 8 5 9 3 . 8 12 6 14 3 Tactical Retreats 12 | . . . . . 4 1 . . . 2 . 1 3 1 Traps | -11 -10 -10 -10 -9 -8 -8 -8 -7 -7 -7 -7 -6 -6 -6 ------- Run | Yrd Mat Min Exi Min Mat Gar Mat Fac Gar Fac Gar Fac Gar Fac Traps Triggered 20 | . . . . . 2 6 1 1 1 2 . 1 4 2 Indirectly . | . . . . . . . . . . . . . . . Trap Hack Attempts . | . . . . . . . . . . . . . . . Triggered . | . . . . . . . . . . . . . . . Disarmed . | . . . . . . . . . . . . . . . Reprogrammed . | . . . . . . . . . . . . . . . Reused . | . . . . . . . . . . . . . . . Traps Extracted . | . . . . . . . . . . . . . . . Installed . | . . . . . . . . . . . . . . . Triggered . | . . . . . . . . . . . . . . . Machines | -11 -10 -10 -10 -9 -8 -8 -8 -7 -7 -7 -7 -6 -6 -6 ---------- Run | Yrd Mat Min Exi Min Mat Gar Mat Fac Gar Fac Gar Fac Gar Fac Machines Disabled 32 | . . . . . 2 3 2 1 . 20 3 . 1 . Max in Single Turn 18 | . . . . . 1 2 1 1 . 18 1 . 1 . Garrison Access 1 | . . . . . . . . . . . . 1 . . Garrison Relay 2 | . . . . . . . . . . . 2 . . . Phase Generator 1 | . . . . . . 1 . . . . . . . . Machines Repaired . | . . . . . . . . . . . . . . . Machines Dismantled . | . . . . . . . . . . . . . . . Machines Sabotaged . | . . . . . . . . . . . . . . . Overloaded Fab Kills . | . . . . . . . . . . . . . . . Hacking | -11 -10 -10 -10 -9 -8 -8 -8 -7 -7 -7 -7 -6 -6 -6 --------- Run | Yrd Mat Min Exi Min Mat Gar Mat Fac Gar Fac Gar Fac Gar Fac Machines Accessed 30 | . 2 . . . 5 2 2 3 4 4 1 4 2 1 Terminals 24 | . 2 . . . 4 2 2 2 4 1 1 3 2 1 Fabricators . | . . . . . . . . . . . . . . . Repair Stations 2 | . . . . . . . . . . 2 . . . . Recycling Units . | . . . . . . . . . . . . . . . Scanalyzers . | . . . . . . . . . . . . . . . Garrison Access 4 | . . . . . 1 . . 1 . 1 . 1 . . Total Hacks 55 | . 6 . . . 10 2 2 4 6 10 3 6 5 1 Successful 25 | . 4 . . . 7 2 . 1 4 3 1 2 1 . Failed 30 | . 2 . . . 3 . 2 3 2 7 2 4 4 1 Catastrophic 11 | . 1 . . . . . 2 2 1 2 1 1 . 1 Database Lockouts . | . . . . . . . . . . . . . . . Manual 29 | . 6 . . . 9 . 2 3 . 3 . 5 . 1 Terminals 45 | . 6 . . . 9 2 2 3 6 3 3 5 5 1 Fabricators . | . . . . . . . . . . . . . . . Repair Stations 6 | . . . . . . . . . . 6 . . . . Recycling Units . | . . . . . . . . . . . . . . . Scanalyzers . | . . . . . . . . . . . . . . . Garrison Access 4 | . . . . . 1 . . 1 . 1 . 1 . . Terminal Hacks 12 | . 2 . . . 2 2 . . 4 . 1 . 1 . Robot Analysis 3 | . 2 . . . 1 . . . . . . . . . Open Door 1 | . . . . . . . . . 1 . . . . . Emergency Access Points 3 | . . . . . . 1 . . 1 . . . 1 . Garrison Index 1 | . . . . . 1 . . . . . . . . . Garrison Registry 2 | . . . . . . . . . 1 . 1 . . . Patrol Navigation 1 | . . . . . . 1 . . . . . . . . Security Stations 1 | . . . . . . . . . 1 . . . . . Fabricator Hacks . | . . . . . . . . . . . . . . . Repair Station Hacks 2 | . . . . . . . . . . 2 . . . . Scan Component 1 | . . . . . . . . . . 1 . . . . Repair 1 | . . . . . . . . . . 1 . . . . Recycling Unit Hacks . | . . . . . . . . . . . . . . . Scanalyzer . | . . . . . . . . . . . . . . . Garrison Access Hacks 4 | . . . . . 1 . . 1 . 1 . 1 . . Unlock Access 4 | . . . . . 1 . . 1 . 1 . 1 . . Unauthorized Hacks 7 | . 2 . . . 4 . . . . . . 1 . . Terminals 7 | . 2 . . . 4 . . . . . . 1 . . Botnet 7 | . 2 . . . 4 . . . . . . 1 . . Fabricators . | . . . . . . . . . . . . . . . Repair Stations . | . . . . . . . . . . . . . . . Recycling Units . | . . . . . . . . . . . . . . . Scanalyzers . | . . . . . . . . . . . . . . . Garrison Access . | . . . . . . . . . . . . . . . Data Cores Recovered . | . . . . . . . . . . . . . . . Used . | . . . . . . . . . . . . . . . Hacking Detections 22 | . 1 . . . 3 1 2 2 3 3 1 3 2 1 Full Trace Events 3 | . . . . . . . . . . 2 . . 1 . Feedback Events . | . . . . . . . . . . . . . . . Feedback Blocked . | . . . . . . . . . . . . . . . Robot Schematics Acquired . | . . . . . . . . . . . . . . . Robots Built . | . . . . . . . . . . . . . . . Authchips . | . . . . . . . . . . . . . . . Time . | . . . . . . . . . . . . . . . Total Robot Build Rating . | . . . . . . . . . . . . . . . Part Schematics Acquired . | . . . . . . . . . . . . . . . Parts Built . | . . . . . . . . . . . . . . . Authchips . | . . . . . . . . . . . . . . . Time . | . . . . . . . . . . . . . . . Total Part Build Rating . | . . . . . . . . . . . . . . . Parts Repaired 1 | . . . . . . . . . . 1 . . . . Time 78 | . . . . . . . . . . 78 . . . . Parts Recycled . | . . . . . . . . . . . . . . . Recycled Matter . | . . . . . . . . . . . . . . . Retrieved Matter . | . . . . . . . . . . . . . . . Retrieved Components . | . . . . . . . . . . . . . . . Parts Scanalyzed . | . . . . . . . . . . . . . . . Part Schematics Acquired . | . . . . . . . . . . . . . . . Parts Damaged . | . . . . . . . . . . . . . . . Bothacking | -11 -10 -10 -10 -9 -8 -8 -8 -7 -7 -7 -7 -6 -6 -6 ------------ Run | Yrd Mat Min Exi Min Mat Gar Mat Fac Gar Fac Gar Fac Gar Fac Used RIF Installer 4 | . . . . . . 1 . . 1 . 1 . 1 . Coupler Efficiency 1 | . . . . . . . . . 1 . . . . . Watcher Feeds 1 | . . . . . . . . . . . 1 . . . Autooverride 1 | . . . . . . . . . . . . . 1 . Robots Hacked . | . . . . . . . . . . . . . . . Non-combat . | . . . . . . . . . . . . . . . Combat . | . . . . . . . . . . . . . . . Robot Hacks Applied . | . . . . . . . . . . . . . . . Relay Couplers Released 9 | . . . . . . . . . . . 7 2 . . Machine Destruction 9 | . . . . . . . . . . . 7 2 . . Attached 4 | . . . . . . . . . . . 2 . 2 . Fabnet Peak Effective % . | . . . . . . . . . . . . . . . Robots Rewired 13 | . . . . . . 11 . . 2 . . . . . Allies Hacked . | . . . . . . . . . . . . . . . Hacks Repelled . | . . . . . . . . . . . . . . . Allies | -11 -10 -10 -10 -9 -8 -8 -8 -7 -7 -7 -7 -6 -6 -6 -------- Run | Yrd Mat Min Exi Min Mat Gar Mat Fac Gar Fac Gar Fac Gar Fac Total Allies 13 | . . . . . . 11 . . 2 . . . . . Largest Group 9 | . . . . . . 9 3 . 2 1 . . . . Highest-Rated Group 125 | . . . . . . 125 42 . 51 31 . . . . Highest-Rated Ally 31 | . . . . . . 21 16 . 31 31 . . . . Total Orders 7 | . . . . . . 2 . 2 . . . . . 3 STAY 1 | . . . . . . 1 . . . . . . . . ROAM 1 | . . . . . . . . . . . . . . 1 FOLLOW 1 | . . . . . . 1 . . . . . . . . EXPLORE 3 | . . . . . . . . 1 . . . . . 2 RETURN 1 | . . . . . . . . 1 . . . . . . Ally Attacks 67 | . . . . . . 40 13 . . 14 . . . . Total Damage 1164 | . . . . . . 840 114 . . 210 . . . . Kills 7 | . . . . . . 5 . . . 2 . . . . Allies Corrupted . | . . . . . . . . . . . . . . . Allies Melted 1 | . . . . . . 1 . . . . . . . . Intel | -11 -10 -10 -10 -9 -8 -8 -8 -7 -7 -7 -7 -6 -6 -6 ------- Run | Yrd Mat Min Exi Min Mat Gar Mat Fac Gar Fac Gar Fac Gar Fac Robot Analysis Total 3 | . 2 . . . 1 . . . . . . . . . Derelict Logs Recovered 1 | . . 1 . . . . . . . . . . . . Drone Launches 9 | . . . . . . . . 3 . . . . . 6 Drone Recoveries 3 | . . . . . . . . . . . . . . 3 Exploration | -11 -10 -10 -10 -9 -8 -8 -8 -7 -7 -7 -7 -6 -6 -6 ------------- Run | Yrd Mat Min Exi Min Mat Gar Mat Fac Gar Fac Gar Fac Gar Fac Turns Passed 11783 | 111 543 126 349 136 1349 2651 402 692 1046 1137 675 1395 962 209 Spaces Moved 5615 | 63 280 72 219 50 588 1300 189 312 537 464 353 654 330 204 Core 260 | 4 . . . . . . . . . . . . 65 191 Treads 4896 | 59 280 72 219 34 535 954 189 312 537 464 353 654 234 . Legs 31 | . . . . . . . . . . . . . 31 . Wheels 415 | . . . . 16 53 346 . . . . . . . . Hover 13 | . . . . . . . . . . . . . . 13 Flight . | . . . . . . . . . . . . . . . Fastest Speed 50 | 50 160 160 160 100 100 145 160 160 160 160 163 155 50 50 Average Speed 166 | 153 160 160 160 140 159 166 160 160 178 199 163 157 224 56 Slowest Speed 1250 | 160 160 160 160 160 243 240 160 160 320 400 163 163 1250 250 Overloaded Moves . | . . . . . . . . . . . . . . . Propulsion Burnouts . | . . . . . . . . . . . . . . . Robots Hopped . | . . . . . . . . . . . . . . . Cave-ins Triggered . | . . . . . . . . . . . . . . . Exploration Rate (%) 37 | 6 54 14 60 15 44 93 27 17 74 15 56 27 48 5 Regions Visited 14 Branch Regions 3 Pre-discovered Areas 1 | . . 1 . . . . . . . . . . . . Known Exits Taken 4 | . . . . . 1 . . 1 . 1 . 1 . . Unknown Exits Taken 6 | 1 1 1 1 1 . . 1 . . . . . . . Scrap Searched 1 | . . . . 1 . . . . . . . . . . Spaces Dug 10 | . . . . . 1 . . 6 . . . 2 1 . Terrain Destroyed 388 | . . . . . 1 119 47 13 . 86 52 56 14 . Melee 10 | . . . . . 1 . . 6 . . . 2 1 . Projectile 29 | . . . . . . . 9 7 . 6 . 7 . . AOE 348 | . . . . . . 119 38 . . 80 52 47 12 . Terrain Rammed 1 | . . . . . . . . . 1 . . . . . Walls Destroyed 1 | . . . . . . . . . 1 . . . . . Machines Disabled . | . . . . . . . . . . . . . . . Actions | -11 -10 -10 -10 -9 -8 -8 -8 -7 -7 -7 -7 -6 -6 -6 --------- Run | Yrd Mat Min Exi Min Mat Gar Mat Fac Gar Fac Gar Fac Gar Fac Total 7262 | 73 330 77 218 92 849 1618 250 464 619 607 415 889 473 288 Wait 547 | . 14 . . 23 85 28 30 103 1 74 13 109 24 43 Move 5603 | 62 279 71 218 49 587 1299 188 311 536 464 352 654 329 204 Hop . | . . . . . . . . . . . . . . . Pick Up 119 | 4 10 1 . 1 32 24 2 7 7 5 9 8 8 1 Fast Attach 68 | 6 1 1 . 1 11 9 3 3 6 6 1 6 10 4 Attach 68 | . . . . 3 14 14 . 5 3 4 2 7 15 1 Detach 8 | . . . . . . 1 . 1 1 2 . 1 2 . Swap 60 | . . 1 . . 6 11 3 7 4 3 9 10 6 . Drop 92 | . 1 . . 2 20 14 4 7 15 7 7 9 5 1 Fire 451 | 1 25 3 . 13 93 83 20 14 1 40 15 83 60 . Melee 37 | . . . . . 1 9 . 6 1 2 7 2 5 4 Ram 1 | . . . . . . . . . 1 . . . . . Kick . | . . . . . . . . . . . . . . . Crush 3 | . . . . . . . . . 3 . . . . . Escape Stasis 46 | . . . . . . 7 . . . . . . 9 30 Rewire 159 | . . . . . . 119 . . 40 . . . . . Trap . | . . . . . . . . . . . . . . . Miscellaneous . | . . . . . . . . . . . . . . . Route ------- -11/Scrapyard -10/Materials (discovered 2 exits: [*Mat] / [*Min]) -10/Mines -10/Exiles -9/Mines -8/Materials -8/Garrison (discovered 3 exits: *Mat x3) -8/Materials -7/Factory (discovered 3 exits: *Fac / [*Low] / Gar) -7/Garrison (discovered 3 exits: *Fac x3) -7/Factory (discovered 2 exits: [*Low] / Gar) -7/Garrison (discovered 3 exits: *Fac x3) -6/Factory -6/Garrison -6/Factory History --------- Turn | Location | Event 7 | -11/Scrapyard | Discovered new exit (range 15) 112 | -11/Scrapyard | Entered Materials 314 | -10/Materials | Build established: Mutant 384 | -10/Materials | Discovered new exit (range 13) 496 | -10/Materials | Discovered new exit (range 10) 655 | -10/Materials | Entered Mines 664 | -10/Mines | Met a Derelict bent on vengeance 691 | -10/Mines | Learned location of Zion (-6) 773 | -10/Mines | Deemed a non-threat by the Exiles lab entrance 775 | -10/Mines | Discovered new exit (range 5) 781 | -10/Mines | Entered Exiles 781 | -10/Exiles | Found Exiles lab abandoned 1113 | -10/Exiles | Discovered new exit (range 14) 1130 | -10/Exiles | Entered Mines 1220 | -9/Mines | Assembled infested the area 1243 | -9/Mines | Discovered new exit (range 12) 1266 | -9/Mines | Lost 3 parts (1p2n) 1266 | -9/Mines | Entered Materials 1266 | -8/Materials | Evolved 4 slots: Propulsion x2, Utility x2 1533 | -8/Materials | Garrison activated, responded to threat 1578 | -8/Materials | Lost 3 parts (1n2u) 1775 | -8/Materials | Lost 3 parts (1n2w) 1899 | -8/Materials | Build established: Scavenger-Mutant 2574 | -8/Materials | Identified exit to Garrison 2615 | -8/Materials | Entered Garrison 2645 | -8/Garrison | Triggered checkpoint 2723 | -8/Garrison | Triggered checkpoint 2803 | -8/Garrison | Triggered checkpoint 2918 | -8/Garrison | Discovered new exit (range 12) 2983 | -8/Garrison | Triggered checkpoint 3035 | -8/Garrison | Lost 6 parts (1p2n2u1w) 3107 | -8/Garrison | Discovered new exit (range 12) 3141 | -8/Garrison | Triggered checkpoint 3361 | -8/Garrison | Triggered checkpoint 3509 | -8/Garrison | Triggered checkpoint 3584 | -8/Garrison | Discovered new exit (range 12) 3653 | -8/Garrison | System corruption reached 10% 3666 | -8/Garrison | Core integrity fell below 50% 3692 | -8/Garrison | Lost 5 parts (3n2u) 3995 | -8/Garrison | Triggered checkpoint 4303 | -8/Garrison | Phase Generator disabled 4533 | -8/Garrison | Triggered checkpoint 4664 | -8/Garrison | Installed Relay Interface Framework 4710 | -8/Garrison | Build established: Commander-Mutant 4720 | -8/Garrison | Spotted B-75 Beast 4747 | -8/Garrison | Destroyed B-75 Beast 4776 | -8/Garrison | Lost 4 allies 5125 | -8/Garrison | Build established: Scavenger-Mutant 5266 | -8/Garrison | Entered Materials 5266 | -8/Materials | Accompanied by 3 allies 5412 | -8/Materials | Lost 3 allies 5419 | -8/Materials | Destroyed 8 combat bots 5641 | -8/Materials | Discovered new exit (range 16) 5668 | -8/Materials | Entered Factory 5668 | -7/Factory | Evolved 2 slots: Utility x2 5722 | -7/Factory | Discovered new exit (range 72) 5748 | -7/Factory | Discovered new exit (range 78) 6350 | -7/Factory | Identified exit to Garrison 6360 | -7/Factory | Entered Garrison 6360 | -7/Garrison | Discovered recently destroyed garrison 6936 | -7/Garrison | Build established: Mutant 6960 | -7/Garrison | Discovered new exit (range 80) 6960 | -7/Garrison | Discovered new exit (range 63) 6960 | -7/Garrison | Discovered new exit (range 8) 7177 | -7/Garrison | Expanded RIF knowledge: Coupler Efficiency 7346 | -7/Garrison | Learned Factory security intel 7406 | -7/Garrison | Entered Factory 7406 | -7/Factory | Accompanied by 1 ally 7542 | -7/Factory | Build established: Scavenger-Mutant 7896 | -7/Factory | Garrison activated, responded to threat 8166 | -7/Factory | Destroyed 7 combat bots 8235 | -7/Factory | Discovered new exit (range 12) 8297 | -7/Factory | Build established: Mutant 8373 | -7/Factory | Repaired Broken Hvy. Treads 8543 | -7/Factory | Identified exit to Garrison 8543 | -7/Factory | Entered Garrison 8586 | -7/Garrison | Discovered new exit (range 64) 8586 | -7/Garrison | Discovered new exit (range 92) 8586 | -7/Garrison | Discovered new exit (range 59) 8648 | -7/Garrison | Triggered checkpoint 8683 | -7/Garrison | Destroyed 7 combat bots 8684 | -7/Garrison | Triggered checkpoint 8692 | -7/Garrison | Triggered checkpoint 8724 | -7/Garrison | Destroyed 12 combat bots 8969 | -7/Garrison | Expanded RIF knowledge: Watcher Feeds 9037 | -7/Garrison | Garrison Relay disabled 9179 | -7/Garrison | Garrison Relay disabled 9218 | -7/Garrison | Entered Factory 9218 | -6/Factory | Evolved 2 slots: Power x1, Utility x1 9918 | -6/Factory | First assault squad dispatched 10001 | -6/Factory | Destroyed 8 combat bots 10613 | -6/Factory | Identified exit to Garrison 10613 | -6/Factory | Entered Garrison 10646 | -6/Garrison | Triggered checkpoint 10706 | -6/Garrison | Expanded RIF knowledge: Autooverride 10865 | -6/Garrison | Triggered checkpoint 10906 | -6/Garrison | Triggered checkpoint 11009 | -6/Garrison | Lost 12 parts (1p5n4u2w) 11337 | -6/Garrison | Triggered checkpoint 11440 | -6/Garrison | Lost 8 parts (2p1n4u1w) 11563 | -6/Garrison | Core integrity fell below 50% 11566 | -6/Garrison | Discovered new exit (range 10) 11575 | -6/Garrison | Entered Factory 11596 | -6/Factory | Lost 9 parts (2p3u4w) 11749 | -6/Factory | Core integrity fell below 20% 11784 | -6/Factory | Destroyed by Y-54 Guardian with Gatling Laser Last Messages --------------- 11690_ ALERT: All DSF locations entering lockdown mode. 11691_ Drone retrieved by Drone Bay. 11704_ Drone destroyed. 11709_ Dropped Drone Bay. 11710_ Drone suffers critical hit (Destroy). 11710_ Drone destroyed. 11711_ Drone released from Drone Bay. 11721_ Drone destroyed. 11728_ Drone retrieved by Drone Bay. 11739_ Drone Bay destroyed. 11740_ S-27 Virus suffers critical hit (Smash). 11740_ Destroyed VTOL Module. 11740_ S-27 Virus system corrupted by crushing effect. 11741_ S-27 Virus misfires. 11742_ S-27 Virus IFF system glitched. 11747_ Power Maul destroyed. 11749_ Acquired Imp. Gravmag System. 11757_ Acquired 11 matter. 11758_ Imp. Gravmag System destroyed. 11760_ Acquired 13 matter. Map ----- +----------------------------------------------------+ | ????????????????????????# """" # | | ????????????????????????############## | | ????????????????????????????########?# | | ????????????????????????????# #?## ##### | | ????????????????????????????# """ #??# #???# | | ????????????????????????????# """ #??# #???# | | ????????????????????????????# """! #??# #???# | | ????????????????????????????# #??# #???# | | ????????????????????????????# """ #??# #???# | | ????????????????????????????# """ #### ##??# | | ????????????????????????????# """ # #######/# | | ????????????????????????????# # "" ## | | ????????????????????????????# """ / "T + | | ????????????????????????????# """ # ## | | ????????????????????????????# """ # ## | | ??????????????????????#?????# ### #### | | ??????????????????????# ????########?# #??# | | ????????????????????### ????????????## ##?# | | ????????????????????# ????????????# ### | | ??????????????????### ????????????# + | | ???????????????????k Y ???????????# !### | | ????????????????????# t ???????????## ##?# | | ????????????????????# t ????????????# #??# | | ?????????????????????# ############# ##?######## | | ?????????????????????# s ########## | | ?????????????????????# @ ^s | | ?????????????????????# ########] ^ | | ?????????????????? ???????#]^ """^ | | ?????????????????###### ????????#]] """ " F" | | ?????????????????????? ????????#] """ """" !# | | ????????????????????? ?????????# # | | ???????????????????? ?????????# # | | ??????????????????? ??????????#######+##+####### | | ??????????????????# ????????????# #????? | | ??????????????????## ?????????????# #????? | | ???????????????????##?????????????# #????? | | ??????????????????????????????????# #????? | | ??????????????????????????????????##########?????? | | | | | | | | | | | | | | | | | | | | | | | | | +----------------------------------------------------+ Best States ------------- Heat Dissipation 70 Energy Generation 47 Energy Capacity 300 Matter Stores 300 Matter Capacity 500 Sight Range 22 Terrain Scan Density 10 Jamming Range 14 EM Shielding 3 Armor Coverage 1200 Resistance: KI 25 Resistance: TH 30 Propulsion Shielding 66 Evasion (%) 50 Target Analysis 5 Core Analysis 6 Recoil Reduction 4 Kinecelleration 30 Offensive Hacking 10 Relay Coupler Types 2 Relay Coupler Value 54 Item Schematics ----------------- None Robot Schematics ------------------ None Fabricated ------------ Nothing Alien Tech Used ----------------- None Achievements -------------- None Challenges ------------ None Game ------ Seed AntigravInertialSpecial Manual? 0 Play Time 01:32:15 Cumulative 89.4 hours Start 2024.05.09 @ 20:48:18 End 2024.05.10 @ 00:03:30 Sessions 3 Manual Loads 0 Difficulty Rogue Special Mode None Game No. 131 Rogue 126 Adventurer 5 Explorer 0 Win Type - Total 2 Types 1/0/0/1/0/0/0/0/0 Lore% 45 Gallery% 63 Achievement% 49 Wizard Run 0 Options --------- Layout 0 ASCII 0 Keyboard 0 Movement Mouse Keybinds 0 Fullscreen 1 Font 24/Smallcaps Map View 76x50 Zoom Use 23% Tactical HUD 1 Map Filters NONE Filters NONE Steam 1 RUN: f33096de-39ff-4d61-b808-b1950b6b0d29